[Event "Early-Titled-Tuesday-Blitz-May-07-2024"]
[Site "Chess.com"]
[Date "2024.05.07"]
[Round "3"]
[White "ChessSwole"]
[Black "ubdip"]
[Result "0-1"]
[WhiteElo "2644"]
[BlackElo "2509"]
[TimeControl "180+1"]
[EndTime "8:32:35 PDT"]
[Termination "ubdip won by checkmate"]

1. e4 {[%clk 0:03:00.9]} 1... c5 {[%clk 0:02:59.8]} 2. Nf3 {[%clk 0:03:00.6]}
2... Nc6 {[%clk 0:03:00.2]} 3. c3 {[%clk 0:03:00.4]} 3... e6 {[%clk 0:02:57.3]}
4. d4 {[%clk 0:02:59.3]} 4... cxd4 {[%clk 0:02:58.2]} 5. cxd4 {[%clk 0:02:59.7]}
5... d5 {[%clk 0:02:57.3]} 6. e5 {[%clk 0:03:00]} 6... Nge7 {[%clk 0:02:56.9]}
7. Nc3 {[%clk 0:02:59.3]} 7... Nf5 {[%clk 0:02:54.7]} 8. Be2 {[%clk 0:02:45.9]}
8... Qb6 {[%clk 0:02:51.3]} 9. Na4 {[%clk 0:02:40.7]} 9... Qa5+ {[%clk
0:02:44.9]} 10. Bd2 {[%clk 0:02:41.2]} 10... Bb4 {[%clk 0:02:44.8]} 11. Bc3
{[%clk 0:02:34.6]} 11... Bd7 {[%clk 0:02:15.2]} 12. O-O {[%clk 0:02:17.9]} 12...
Nxe5 {[%clk 0:02:02.3]} 13. Nxe5 {[%clk 0:02:03.2]} 13... Bxa4 {[%clk
0:02:00.4]} 14. Bxb4 {[%clk 0:01:51.4]} 14... Bxd1 {[%clk 0:01:34.7]} 15. Bxa5
{[%clk 0:01:51.3]} 15... Bxe2 {[%clk 0:01:35]} 16. Rfc1 {[%clk 0:01:46.8]} 16...
f6 {[%clk 0:01:23]} 17. Nf3 {[%clk 0:01:34]} 17... Bxf3 {[%clk 0:01:22.2]} 18.
gxf3 {[%clk 0:01:34.9]} 18... Nxd4 {[%clk 0:01:21.3]} 19. Rc7 {[%clk 0:01:35.5]}
19... O-O {[%clk 0:01:14.5]} 20. Rxb7 {[%clk 0:01:31.7]} 20... Rfb8 {[%clk
0:01:10.9]} 21. Rd7 {[%clk 0:01:11]} 21... Rxb2 {[%clk 0:01:05.7]} 22. Kg2
{[%clk 0:01:10.6]} 22... Ne2 {[%clk 0:00:51.5]} 23. Kf1 {[%clk 0:00:57.2]} 23...
Nf4 {[%clk 0:00:48.4]} 24. Bc7 {[%clk 0:00:43.4]} 24... e5 {[%clk 0:00:47.1]}
25. h4 {[%clk 0:00:27.6]} 25... h5 {[%clk 0:00:46.5]} 26. Ba5 {[%clk 0:00:23.4]}
26... Rc8 {[%clk 0:00:43]} 27. Rxa7 {[%clk 0:00:19.2]} 27... Rcc2 {[%clk
0:00:42]} 28. Be1 {[%clk 0:00:19.9]} 28... Nd3 {[%clk 0:00:37.2]} 29. Rd1 {[%clk
0:00:18.8]} 29... Nxe1 {[%clk 0:00:35.8]} 30. Rxe1 {[%clk 0:00:15.9]} 30...
Rxf2+ {[%clk 0:00:35.8]} 31. Kg1 {[%clk 0:00:16.6]} 31... Rg2+ {[%clk
0:00:35.2]} 32. Kh1 {[%clk 0:00:17.1]} 32... Rh2+ {[%clk 0:00:35.1]} 33. Kg1
{[%clk 0:00:17.7]} 33... Rbg2+ {[%clk 0:00:34.8]} 34. Kf1 {[%clk 0:00:18.2]}
34... Rxa2 {[%clk 0:00:35]} 35. Kg1 {[%clk 0:00:17.2]} 35... Rhg2+ {[%clk
0:00:33.3]} 36. Kh1 {[%clk 0:00:17.1]} 36... Rxa7 {[%clk 0:00:30.5]} 37. Kxg2
{[%clk 0:00:17.2]} 37... Ra2+ {[%clk 0:00:30.2]} 38. Kg3 {[%clk 0:00:17.2]}
38... Kf7 {[%clk 0:00:30.7]} 39. Rb1 {[%clk 0:00:13.6]} 39... Ke6 {[%clk
0:00:29.2]} 40. Rb7 {[%clk 0:00:13.5]} 40... g6 {[%clk 0:00:29.1]} 41. Rg7
{[%clk 0:00:13.3]} 41... Kf5 {[%clk 0:00:29.2]} 42. Rd7 {[%clk 0:00:14]} 42...
d4 {[%clk 0:00:29.2]} 43. Rd6 {[%clk 0:00:14]} 43... Ra3 {[%clk 0:00:28.8]} 44.
Kg2 {[%clk 0:00:13.9]} 44... d3 {[%clk 0:00:28.7]} 45. Kf2 {[%clk 0:00:13.2]}
45... g5 {[%clk 0:00:23.6]} 46. hxg5 {[%clk 0:00:11]} 46... fxg5 {[%clk
0:00:24.5]} 47. Ke3 {[%clk 0:00:11.4]} 47... h4 {[%clk 0:00:24.7]} 48. Rh6
{[%clk 0:00:12.1]} 48... d2+ {[%clk 0:00:21.5]} 49. Ke2 {[%clk 0:00:10.7]} 49...
Rxf3 {[%clk 0:00:20.6]} 50. Kd1 {[%clk 0:00:11.4]} 50... Rf2 {[%clk 0:00:20.2]}
51. Rh8 {[%clk 0:00:10.2]} 51... Kg4 {[%clk 0:00:20.2]} 52. Re8 {[%clk
0:00:10.1]} 52... h3 {[%clk 0:00:19.3]} 53. Rxe5 {[%clk 0:00:10.6]} 53... h2
{[%clk 0:00:19.7]} 54. Re4+ {[%clk 0:00:10.6]} 54... Kf3 {[%clk 0:00:18]} 55.
Rb4 {[%clk 0:00:09.7]} 55... h1=Q+ {[%clk 0:00:17.8]} 56. Kc2 {[%clk 0:00:10.4]}
56... d1=Q+ {[%clk 0:00:16.2]} 57. Kc3 {[%clk 0:00:11]} 57... Qhe1+ {[%clk
0:00:15.6]} 58. Kc4 {[%clk 0:00:11.6]} 58... Rc2+ {[%clk 0:00:15.5]} 59. Kb5
{[%clk 0:00:11.3]} 59... Qxb4+ {[%clk 0:00:15.5]} 60. Ka6 {[%clk 0:00:11.2]}
60... Qdb1 {[%clk 0:00:16.4]} 61. Ka7 {[%clk 0:00:11.5]} 61... Ra2# {[%clk
0:00:17]} 0-1

[Event "Early-Titled-Tuesday-Blitz-May-07-2024"]
[Site "Chess.com"]
[Date "2024.05.07"]
[Round "3"]
[White "SirStrateg"]
[Black "ErikRonka"]
[Result "1-0"]
[WhiteElo "2674"]
[BlackElo "2499"]
[TimeControl "180+1"]
[EndTime "8:32:40 PDT"]
[Termination "SirStrateg won by resignation"]

1. d4 {[%clk 0:03:00.9]} 1... d5 {[%clk 0:02:58.8]} 2. Bf4 {[%clk 0:03:01.1]}
2... c5 {[%clk 0:02:58.6]} 3. e3 {[%clk 0:03:01.4]} 3... Nc6 {[%clk 0:02:56.4]}
4. c3 {[%clk 0:03:01.5]} 4... Nf6 {[%clk 0:02:54.4]} 5. Nd2 {[%clk 0:03:01.4]}
5... cxd4 {[%clk 0:02:51.8]} 6. exd4 {[%clk 0:03:00.7]} 6... Bg4 {[%clk
0:02:52.3]} 7. Qb3 {[%clk 0:02:52.9]} 7... Qc8 {[%clk 0:02:52.1]} 8. h3 {[%clk
0:02:52.6]} 8... Bh5 {[%clk 0:02:51.7]} 9. a4 {[%clk 0:02:52]} 9... e6 {[%clk
0:02:50.3]} 10. a5 {[%clk 0:02:52.1]} 10... Be7 {[%clk 0:02:39.8]} 11. Ngf3
{[%clk 0:02:41]} 11... O-O {[%clk 0:02:34.5]} 12. a6 {[%clk 0:02:40.1]} 12... b6
{[%clk 0:02:34.1]} 13. Bb5 {[%clk 0:02:35.9]} 13... Ne8 {[%clk 0:01:19.4]} 14.
Qa4 {[%clk 0:02:33.7]} 14... Nb8 {[%clk 0:01:16.1]} 15. O-O {[%clk 0:02:17.7]}
15... Nd6 {[%clk 0:01:15.8]} 16. Bxd6 {[%clk 0:02:15.9]} 16... Bxd6 {[%clk
0:01:16.7]} 17. Rae1 {[%clk 0:01:48.2]} 17... Rd8 {[%clk 0:01:15]} 18. Ne5
{[%clk 0:01:34.1]} 18... Qc7 {[%clk 0:01:14.1]} 19. f4 {[%clk 0:01:29.3]} 19...
Bg6 {[%clk 0:01:09.1]} 20. Rf2 {[%clk 0:01:15.2]} 20... Bxe5 {[%clk 0:01:06.5]}
21. fxe5 {[%clk 0:01:08.4]} 21... Nd7 {[%clk 0:01:06.1]} 22. Re3 {[%clk
0:00:55.8]} 22... Nf8 {[%clk 0:00:53.3]} 23. g4 {[%clk 0:00:48.8]} 23... h6
{[%clk 0:00:51.4]} 24. Kg2 {[%clk 0:00:48.9]} 24... Nh7 {[%clk 0:00:51.4]} 25.
h4 {[%clk 0:00:47.3]} 25... Rac8 {[%clk 0:00:50.8]} 26. h5 {[%clk 0:00:46.6]}
26... Be4+ {[%clk 0:00:50.6]} 27. Nxe4 {[%clk 0:00:40.4]} 27... dxe4 {[%clk
0:00:51.5]} 28. Rxe4 {[%clk 0:00:40.9]} 28... Ng5 {[%clk 0:00:51.6]} 29. Ref4
{[%clk 0:00:40.5]} 29... Qe7 {[%clk 0:00:39.3]} 30. Bc6 {[%clk 0:00:25]} 30...
Rf8 {[%clk 0:00:37.9]} 31. Bb7 {[%clk 0:00:23.9]} 31... Rcd8 {[%clk 0:00:37.3]}
32. Qc6 {[%clk 0:00:19.1]} 32... Nh7 {[%clk 0:00:37.1]} 33. Kg3 {[%clk
0:00:18.3]} 33... Qg5 {[%clk 0:00:36.9]} 34. Qh1 {[%clk 0:00:17.4]} 34... f6
{[%clk 0:00:36.4]} 35. Qh4 {[%clk 0:00:12]} 35... Qxh4+ {[%clk 0:00:09.6]} 36.
Kxh4 {[%clk 0:00:12.5]} 36... Kf7 {[%clk 0:00:10.5]} 37. exf6 {[%clk 0:00:12.3]}
37... gxf6 {[%clk 0:00:10.5]} 38. Re2 {[%clk 0:00:10.9]} 38... Ke7 {[%clk
0:00:08.8]} 39. Rfe4 {[%clk 0:00:11.2]} 39... Ng5 {[%clk 0:00:09.1]} 40. R4e3
{[%clk 0:00:11.8]} 40... Rd6 {[%clk 0:00:09.3]} 41. Bg2 {[%clk 0:00:11.3]} 41...
Rfd8 {[%clk 0:00:09.6]} 42. d5 {[%clk 0:00:11.6]} 42... b5 {[%clk 0:00:10]} 43.
dxe6 {[%clk 0:00:11.5]} 43... Rxe6 {[%clk 0:00:10.3]} 44. Rxe6+ {[%clk
0:00:11.7]} 44... Nxe6 {[%clk 0:00:11.1]} 45. Bb7 {[%clk 0:00:11.8]} 45... Rd6
{[%clk 0:00:10.5]} 46. Bc8 {[%clk 0:00:11.7]} 46... Kf7 {[%clk 0:00:06.1]} 47.
Rxe6 {[%clk 0:00:11.2]} 47... Rxe6 {[%clk 0:00:07]} 48. Bxe6+ {[%clk 0:00:11.7]}
48... Kxe6 {[%clk 0:00:07.9]} 49. Kg3 {[%clk 0:00:12.3]} 49... Kd5 {[%clk
0:00:07.7]} 50. b3 {[%clk 0:00:12.7]} 50... Ke4 {[%clk 0:00:06.9]} 51. c4 {[%clk
0:00:13.2]} 51... bxc4 {[%clk 0:00:07.4]} 52. bxc4 {[%clk 0:00:14.1]} 52... Kd4
{[%clk 0:00:07.9]} 53. Kf4 {[%clk 0:00:14.7]} 53... Kxc4 {[%clk 0:00:06.6]} 54.
Kf5 {[%clk 0:00:15.4]} 54... Kb5 {[%clk 0:00:04.9]} 55. Kxf6 {[%clk 0:00:16]}
55... Kxa6 {[%clk 0:00:05.3]} 56. g5 {[%clk 0:00:16.7]} 56... hxg5 {[%clk
0:00:05.3]} 57. Kxg5 {[%clk 0:00:17.4]} 1-0

[Event "Early-Titled-Tuesday-Blitz-May-07-2024"]
[Site "Chess.com"]
[Date "2024.05.07"]
[Round "3"]
[White "yobdc"]
[Black "Roosters19"]
[Result "1-0"]
[WhiteElo "2525"]
[BlackElo "2293"]
[TimeControl "180+1"]
[EndTime "8:32:41 PDT"]
[Termination "yobdc won by resignation"]

1. Nf3 {[%clk 0:03:00.9]} 1... c5 {[%clk 0:02:55.2]} 2. g3 {[%clk 0:03:01.4]}
2... Nc6 {[%clk 0:02:38.2]} 3. Bg2 {[%clk 0:03:02.3]} 3... g6 {[%clk 0:02:36.2]}
4. O-O {[%clk 0:03:00.5]} 4... Bg7 {[%clk 0:02:36.3]} 5. c4 {[%clk 0:02:58.6]}
5... Nf6 {[%clk 0:02:34.4]} 6. d4 {[%clk 0:02:55.9]} 6... cxd4 {[%clk
0:02:33.9]} 7. Nxd4 {[%clk 0:02:56.8]} 7... O-O {[%clk 0:02:33.6]} 8. Nc3 {[%clk
0:02:56.3]} 8... d6 {[%clk 0:02:33.7]} 9. e3 {[%clk 0:02:51.6]} 9... Bg4 {[%clk
0:02:17.5]} 10. Qd2 {[%clk 0:02:39.8]} 10... Qd7 {[%clk 0:02:04.4]} 11. b3
{[%clk 0:02:37.7]} 11... Rac8 {[%clk 0:01:52.5]} 12. Bb2 {[%clk 0:02:37.4]}
12... Bh3 {[%clk 0:01:52.6]} 13. Rac1 {[%clk 0:02:30.2]} 13... Bxg2 {[%clk
0:01:52]} 14. Kxg2 {[%clk 0:02:31.1]} 14... a6 {[%clk 0:01:43.8]} 15. Na4 {[%clk
0:02:16]} 15... Qc7 {[%clk 0:01:36.4]} 16. f3 {[%clk 0:02:11.8]} 16... h5 {[%clk
0:01:34.1]} 17. h4 {[%clk 0:02:00.2]} 17... Rfd8 {[%clk 0:00:55]} 18. Ne2 {[%clk
0:01:46.7]} 18... b5 {[%clk 0:00:46.9]} 19. cxb5 {[%clk 0:01:45.1]} 19... axb5
{[%clk 0:00:47.8]} 20. Nac3 {[%clk 0:01:42.8]} 20... Qb7 {[%clk 0:00:47.7]} 21.
Nf4 {[%clk 0:01:16.3]} 21... Ne5 {[%clk 0:00:42.3]} 22. e4 {[%clk 0:01:02.8]}
22... e6 {[%clk 0:00:33.5]} 23. Nce2 {[%clk 0:00:52.5]} 23... Ra8 {[%clk
0:00:26.2]} 24. Ba1 {[%clk 0:00:40.5]} 24... Nc6 {[%clk 0:00:19.4]} 25. Rc2
{[%clk 0:00:37.3]} 25... d5 {[%clk 0:00:18.8]} 26. exd5 {[%clk 0:00:21.8]} 26...
Nxd5 {[%clk 0:00:18.7]} 27. Nxd5 {[%clk 0:00:21.7]} 27... Rxd5 {[%clk
0:00:18.3]} 28. Qe3 {[%clk 0:00:20.9]} 28... Bxa1 {[%clk 0:00:17.3]} 29. Rxa1
{[%clk 0:00:21.8]} 29... Ne5 {[%clk 0:00:16.8]} 30. Nf4 {[%clk 0:00:18.1]} 30...
Rad8 {[%clk 0:00:14.5]} 31. Nxd5 {[%clk 0:00:17.7]} 31... Qxd5 {[%clk
0:00:15.3]} 32. Rf1 {[%clk 0:00:17.5]} 32... b4 {[%clk 0:00:14.3]} 33. Qe4
{[%clk 0:00:14.6]} 33... Qxe4 {[%clk 0:00:14.2]} 34. fxe4 {[%clk 0:00:14.9]}
34... Ng4 {[%clk 0:00:14.6]} 35. Re1 {[%clk 0:00:14.9]} 35... Rd3 {[%clk
0:00:14.1]} 36. Rc8+ {[%clk 0:00:14.1]} 36... Kg7 {[%clk 0:00:13.3]} 37. Rb8
{[%clk 0:00:13.8]} 37... Ne3+ {[%clk 0:00:13.4]} 38. Kh3 {[%clk 0:00:13.6]}
38... Ng4 {[%clk 0:00:12]} 39. Re2 {[%clk 0:00:13.3]} 39... Rd1 {[%clk
0:00:11.8]} 40. Rxb4 {[%clk 0:00:12.6]} 40... Rh1+ {[%clk 0:00:11.7]} 41. Kg2
{[%clk 0:00:12.9]} 41... Rh2+ {[%clk 0:00:12.4]} 42. Kf3 {[%clk 0:00:13.1]}
42... Ne5+ {[%clk 0:00:11]} 43. Ke3 {[%clk 0:00:12.3]} 43... Rh3 {[%clk
0:00:10.4]} 44. Rg2 {[%clk 0:00:11.9]} 44... Ng4+ {[%clk 0:00:10.3]} 45. Ke2
{[%clk 0:00:11.8]} 45... Rh1 {[%clk 0:00:10.4]} 46. a4 {[%clk 0:00:11.4]} 46...
Ra1 {[%clk 0:00:11]} 47. Rb5 {[%clk 0:00:11.4]} 47... Ra2+ {[%clk 0:00:10.9]}
48. Kf3 {[%clk 0:00:10.5]} 48... Ra3 {[%clk 0:00:10.7]} 49. Rb2 {[%clk
0:00:10.5]} 49... f6 {[%clk 0:00:10.6]} 50. a5 {[%clk 0:00:10.6]} 50... Ra1
{[%clk 0:00:08.3]} 51. Ke2 {[%clk 0:00:10.3]} 51... Ra3 {[%clk 0:00:07.8]} 52.
Kd3 {[%clk 0:00:10.3]} 52... Ne5+ {[%clk 0:00:08.7]} 53. Rxe5 {[%clk 0:00:09.8]}
53... fxe5 {[%clk 0:00:08.4]} 54. Kc4 {[%clk 0:00:09.8]} 54... Rxa5 {[%clk
0:00:08.7]} 55. b4 {[%clk 0:00:10.3]} 55... Ra8 {[%clk 0:00:09.3]} 56. b5 {[%clk
0:00:10.8]} 56... Rc8+ {[%clk 0:00:10.2]} 57. Kb4 {[%clk 0:00:10.9]} 57... Rb8
{[%clk 0:00:10.8]} 58. Kc5 {[%clk 0:00:11.4]} 58... Kf7 {[%clk 0:00:11.5]} 59.
b6 {[%clk 0:00:11.2]} 59... Ke7 {[%clk 0:00:12.4]} 60. b7 {[%clk 0:00:11.2]}
60... Kd8 {[%clk 0:00:13]} 61. Kb6 {[%clk 0:00:11]} 61... Kd7 {[%clk 0:00:13.2]}
62. Rd2+ {[%clk 0:00:10.9]} 62... Ke7 {[%clk 0:00:13.3]} 63. Kc7 {[%clk
0:00:11.4]} 63... Rxb7+ {[%clk 0:00:13.5]} 64. Kxb7 {[%clk 0:00:11.6]} 1-0

[Event "Early-Titled-Tuesday-Blitz-May-07-2024"]
[Site "Chess.com"]
[Date "2024.05.07"]
[Round "3"]
[White "Aygehovit1992"]
[Black "toninhojit"]
[Result "1/2-1/2"]
[WhiteElo "2848"]
[BlackElo "2573"]
[TimeControl "180+1"]
[EndTime "8:32:44 PDT"]
[Termination "Game drawn by repetition"]

1. e4 {[%clk 0:03:00.9]} 1... e5 {[%clk 0:02:52.4]} 2. Nf3 {[%clk 0:02:59.6]}
2... Nc6 {[%clk 0:02:53.1]} 3. Bb5 {[%clk 0:02:58.2]} 3... Nf6 {[%clk
0:02:53.5]} 4. Bf1 {[%clk 0:02:58]} 4... Nxe4 {[%clk 0:02:51.9]} 5. d4 {[%clk
0:02:48.6]} 5... exd4 {[%clk 0:02:49.4]} 6. Nxd4 {[%clk 0:02:49]} 6... Bc5
{[%clk 0:02:44.8]} 7. Be3 {[%clk 0:02:46.6]} 7... Qf6 {[%clk 0:02:41.6]} 8. c3
{[%clk 0:02:46.5]} 8... Nxd4 {[%clk 0:02:36.8]} 9. cxd4 {[%clk 0:02:45.7]} 9...
Bb4+ {[%clk 0:02:36.8]} 10. Nd2 {[%clk 0:02:45.3]} 10... Nxd2 {[%clk 0:02:36.6]}
11. Bxd2 {[%clk 0:02:45.6]} 11... Qxd4 {[%clk 0:02:29.4]} 12. Qe2+ {[%clk
0:02:46]} 12... Kd8 {[%clk 0:02:29.7]} 13. O-O-O {[%clk 0:02:43.7]} 13... Bxd2+
{[%clk 0:02:10.7]} 14. Rxd2 {[%clk 0:02:44.6]} 14... Qc5+ {[%clk 0:02:07.2]} 15.
Rc2 {[%clk 0:02:19.9]} 15... Qg5+ {[%clk 0:02:06]} 16. Kb1 {[%clk 0:02:20.4]}
16... Re8 {[%clk 0:02:06.2]} 17. Qd1 {[%clk 0:02:20.7]} 17... d6 {[%clk
0:02:02.5]} 18. h4 {[%clk 0:02:21]} 18... Qe5 {[%clk 0:01:56.1]} 19. Bd3 {[%clk
0:02:19.6]} 19... Bf5 {[%clk 0:01:53.3]} 20. a3 {[%clk 0:02:09.5]} 20... Kd7
{[%clk 0:01:40.2]} 21. Bxf5+ {[%clk 0:02:03.5]} 21... Qxf5 {[%clk 0:01:41.1]}
22. g4 {[%clk 0:02:04]} 22... Qe4 {[%clk 0:01:37.5]} 23. Qc1 {[%clk 0:01:59.2]}
23... c6 {[%clk 0:01:34.9]} 24. Rg1 {[%clk 0:01:58.1]} 24... d5 {[%clk
0:01:33.1]} 25. Qg5 {[%clk 0:01:26.9]} 25... Qg6 {[%clk 0:01:31.6]} 26. Qd2
{[%clk 0:01:27.1]} 26... Re4 {[%clk 0:01:27.3]} 27. h5 {[%clk 0:01:25.3]} 27...
Qf6 {[%clk 0:01:21.6]} 28. g5 {[%clk 0:01:24.2]} 28... Qf4 {[%clk 0:01:16.6]}
29. Qc3 {[%clk 0:01:18.3]} 29... Qe5 {[%clk 0:01:15.4]} 30. Qb3 {[%clk
0:01:11.5]} 30... Re1+ {[%clk 0:01:10.5]} 31. Ka2 {[%clk 0:01:11.3]} 31... Kc7
{[%clk 0:01:03.6]} 32. Rxe1 {[%clk 0:01:11.1]} 32... Qxe1 {[%clk 0:01:04.5]} 33.
Qxd5 {[%clk 0:01:08.6]} 33... Qe6 {[%clk 0:00:57.9]} 34. Qxe6 {[%clk 0:01:07.2]}
34... fxe6 {[%clk 0:00:58.8]} 35. f4 {[%clk 0:00:42.2]} 35... Rf8 {[%clk
0:00:54]} 36. Rc4 {[%clk 0:00:42.7]} 36... Rf5 {[%clk 0:00:53.6]} 37. Re4 {[%clk
0:00:42.9]} 37... Kd6 {[%clk 0:00:53.5]} 38. Kb3 {[%clk 0:00:39.1]} 38... e5
{[%clk 0:00:51.7]} 39. fxe5+ {[%clk 0:00:38.5]} 39... Rxe5 {[%clk 0:00:52.6]}
40. Rg4 {[%clk 0:00:39]} 40... Ke6 {[%clk 0:00:49.8]} 41. Rg1 {[%clk 0:00:38.1]}
41... Re4 {[%clk 0:00:45.3]} 42. g6 {[%clk 0:00:34.4]} 42... h6 {[%clk
0:00:38.7]} 43. Rf1 {[%clk 0:00:34.7]} 43... Kd6 {[%clk 0:00:39.1]} 44. Rf7
{[%clk 0:00:33.3]} 44... Re7 {[%clk 0:00:39.2]} 45. Rf8 {[%clk 0:00:33.9]} 45...
Kc5 {[%clk 0:00:35.1]} 46. Ka4 {[%clk 0:00:31.7]} 46... Re5 {[%clk 0:00:31.1]}
47. b4+ {[%clk 0:00:31.6]} 47... Kb6 {[%clk 0:00:31]} 48. Rf7 {[%clk 0:00:31.7]}
48... Rxh5 {[%clk 0:00:31.6]} 49. Rxg7 {[%clk 0:00:32]} 49... Rg5 {[%clk
0:00:32.3]} 50. Kb3 {[%clk 0:00:26]} 50... Rg4 {[%clk 0:00:32.3]} 51. a4 {[%clk
0:00:25.7]} 51... h5 {[%clk 0:00:30.2]} 52. a5+ {[%clk 0:00:25.3]} 52... Ka6
{[%clk 0:00:30.4]} 53. Rh7 {[%clk 0:00:20.7]} 53... Rg3+ {[%clk 0:00:28]} 54.
Ka4 {[%clk 0:00:19.4]} 54... b5+ {[%clk 0:00:25.1]} 55. axb6 {[%clk 0:00:19.6]}
55... axb6 {[%clk 0:00:26]} 56. b5+ {[%clk 0:00:18.9]} 56... cxb5+ {[%clk
0:00:26]} 57. Kb4 {[%clk 0:00:19.5]} 57... Rg4+ {[%clk 0:00:26.5]} 58. Kb3
{[%clk 0:00:19.7]} 58... b4 {[%clk 0:00:21.2]} 59. g7 {[%clk 0:00:18.1]} 59...
h4 {[%clk 0:00:19.9]} 60. Rxh4 {[%clk 0:00:17.1]} 60... Rxg7 {[%clk 0:00:19.2]}
61. Kxb4 {[%clk 0:00:17.6]} 61... Re7 {[%clk 0:00:17.9]} 62. Rd4 {[%clk
0:00:17.4]} 62... Rf7 {[%clk 0:00:18.2]} 63. Rh4 {[%clk 0:00:17.6]} 63... Re7
{[%clk 0:00:18.6]} 64. Rd4 {[%clk 0:00:17.7]} 64... Rf7 {[%clk 0:00:19.1]} 65.
Rh4 {[%clk 0:00:17.9]} 65... Re7 {[%clk 0:00:19.6]} 1/2-1/2

[Event "Early-Titled-Tuesday-Blitz-May-07-2024"]
[Site "Chess.com"]
[Date "2024.05.07"]
[Round "3"]
[White "MagnusCarlsen"]
[Black "sokidze"]
[Result "1/2-1/2"]
[WhiteElo "3227"]
[BlackElo "2831"]
[TimeControl "180+1"]
[EndTime "8:32:45 PDT"]
[Termination "Game drawn by repetition"]

1. a4 {[%clk 0:03:00.9]} 1... d5 {[%clk 0:02:58.4]} 2. Ra3 {[%clk 0:02:47.7]}
2... Nf6 {[%clk 0:02:51.4]} 3. Nf3 {[%clk 0:02:45.6]} 3... Nc6 {[%clk
0:02:42.9]} 4. d4 {[%clk 0:02:43.2]} 4... e6 {[%clk 0:02:33.4]} 5. Bf4 {[%clk
0:02:37.2]} 5... Bxa3 {[%clk 0:02:27.3]} 6. Nxa3 {[%clk 0:02:38.1]} 6... a6
{[%clk 0:02:27.9]} 7. e3 {[%clk 0:02:37.8]} 7... O-O {[%clk 0:02:27.4]} 8. c3
{[%clk 0:02:34.6]} 8... b6 {[%clk 0:02:20.3]} 9. Bd3 {[%clk 0:02:29.5]} 9... Bb7
{[%clk 0:02:18.6]} 10. O-O {[%clk 0:02:28.9]} 10... Ne7 {[%clk 0:02:17.5]} 11.
Nb1 {[%clk 0:02:28.3]} 11... Ng6 {[%clk 0:02:15.2]} 12. Bg5 {[%clk 0:02:26.4]}
12... h6 {[%clk 0:02:11.5]} 13. Bxg6 {[%clk 0:02:25.3]} 13... fxg6 {[%clk
0:02:03.6]} 14. Bf4 {[%clk 0:02:24.1]} 14... g5 {[%clk 0:01:59.6]} 15. Bg3
{[%clk 0:02:23.7]} 15... Ne4 {[%clk 0:01:55.3]} 16. Nbd2 {[%clk 0:02:23.6]}
16... Nxd2 {[%clk 0:01:38.7]} 17. Qxd2 {[%clk 0:02:21.6]} 17... Bc6 {[%clk
0:01:38.5]} 18. Ra1 {[%clk 0:02:10.9]} 18... a5 {[%clk 0:01:34]} 19. Ne5 {[%clk
0:02:10.4]} 19... Be8 {[%clk 0:01:30.7]} 20. f3 {[%clk 0:02:10]} 20... c5 {[%clk
0:01:27.6]} 21. h3 {[%clk 0:02:10.1]} 21... Rc8 {[%clk 0:01:24.5]} 22. Qe1
{[%clk 0:02:04.9]} 22... Qe7 {[%clk 0:01:19.9]} 23. Kh2 {[%clk 0:02:03.7]} 23...
Rf6 {[%clk 0:01:10.6]} 24. Qb1 {[%clk 0:01:59.4]} 24... Bh5 {[%clk 0:01:05.8]}
25. Qd3 {[%clk 0:01:58.4]} 25... c4 {[%clk 0:00:56.6]} 26. Qc2 {[%clk
0:01:58.2]} 26... Qe8 {[%clk 0:00:56.2]} 27. b3 {[%clk 0:01:43.5]} 27... Bg6
{[%clk 0:00:54.6]} 28. Qb2 {[%clk 0:01:43.9]} 28... cxb3 {[%clk 0:00:54.7]} 29.
Qxb3 {[%clk 0:01:44.8]} 29... Qd8 {[%clk 0:00:53.6]} 30. Ra3 {[%clk 0:01:15]}
30... Kh7 {[%clk 0:00:48.5]} 31. Qb2 {[%clk 0:01:02.9]} 31... Be8 {[%clk
0:00:34.4]} 32. Qe2 {[%clk 0:00:55.5]} 32... Kg8 {[%clk 0:00:23.1]} 33. Qa6
{[%clk 0:00:47]} 33... Ra8 {[%clk 0:00:22.6]} 34. Qd3 {[%clk 0:00:46.6]} 34...
Rc8 {[%clk 0:00:22.6]} 35. c4 {[%clk 0:00:45.3]} 35... dxc4 {[%clk 0:00:22.4]}
36. Nxc4 {[%clk 0:00:46.2]} 36... b5 {[%clk 0:00:19]} 37. Nd6 {[%clk 0:00:44.6]}
37... b4 {[%clk 0:00:19.2]} 38. Nxc8 {[%clk 0:00:41.7]} 38... bxa3 {[%clk
0:00:18.1]} 39. Nd6 {[%clk 0:00:42.2]} 39... Bxa4 {[%clk 0:00:14.6]} 40. Qxa3
{[%clk 0:00:41.9]} 40... Qd7 {[%clk 0:00:12.2]} 41. Qc5 {[%clk 0:00:38.7]} 41...
Rf8 {[%clk 0:00:12]} 42. Qxa5 {[%clk 0:00:37.9]} 42... Bc6 {[%clk 0:00:12.4]}
43. Nc4 {[%clk 0:00:36.2]} 43... Ra8 {[%clk 0:00:11.9]} 44. Qc3 {[%clk
0:00:34.4]} 44... Bd5 {[%clk 0:00:09.3]} 45. Ne5 {[%clk 0:00:31.2]} 45... Qc8
{[%clk 0:00:09.4]} 46. Qd3 {[%clk 0:00:27.1]} 46... Ra2 {[%clk 0:00:09.6]} 47.
e4 {[%clk 0:00:27.1]} 47... Bb7 {[%clk 0:00:03.5]} 48. Qb3 {[%clk 0:00:15.6]}
48... Qc2 {[%clk 0:00:03.8]} 49. Qxe6+ {[%clk 0:00:14.8]} 49... Kh7 {[%clk
0:00:03.9]} 50. Qg6+ {[%clk 0:00:05.7]} 50... Kg8 {[%clk 0:00:04.3]} 51. Qe8+
{[%clk 0:00:05.7]} 51... Kh7 {[%clk 0:00:04.7]} 52. Qg6+ {[%clk 0:00:05.8]}
52... Kg8 {[%clk 0:00:05.2]} 53. Qe8+ {[%clk 0:00:05.7]} 53... Kh7 {[%clk
0:00:05.8]} 54. Qg6+ {[%clk 0:00:05.1]} 1/2-1/2